bitfinex/quotes_BTCUSD_20241222
["timestamp","ask_amount","ask_price","bid_price","bid_amount"]
[1734862372429,0.68616838,97110.0,97109.0,0.0771714]
[1734862381727,0.68616838,97110.0,97109.0,0.1231714]
[1734862382411,0.66550405,97110.0,97109.0,0.1231714]
[1734862384828,0.85086673,97110.0,97109.0,0.1231714]
[1734862387685,0.66550405,97110.0,97109.0,0.1231714]
[1734862390309,0.85089428,97110.0,97109.0,0.1231714]
[1734862391232,0.66550405,97110.0,97109.0,0.1231714]
[1734862392375,0.89720741,97110.0,97109.0,0.1231714]
[1734862393883,0.66550405,97110.0,97109.0,0.1231714]
[1734862395154,0.89720741,97110.0,97109.0,0.1231714]
[1734862397620,0.66550405,97110.0,97109.0,0.1231714]
[1734862405944,0.8509095,97110.0,97109.0,0.1231714]
[1734862407422,0.66550405,97110.0,97109.0,0.1231714]
[1734862409525,0.89726103,97110.0,97109.0,0.1231714]
[1734862410948,0.66550405,97110.0,97109.0,0.1231714]
[1734862414194,0.85089949,97110.0,97109.0,0.1231714]
[1734862416524,0.41712783,97110.0,97109.0,0.1231714]
[1734862416977,0.31581943,97110.0,97109.0,0.1231714]
[1734862419489,0.22312868,97110.0,97109.0,0.1231714]
[1734862419688,0.32443708,97110.0,97109.0,0.1231714]
[1734862420725,0.4634732,97110.0,97109.0,0.1231714]
[1734862421891,0.6666363,97110.0,97109.0,0.1231714]
[1734862422395,0.5653279,97110.0,97109.0,0.1231714]
[1734862422693,0.57305408,97110.0,97109.0,0.1231714]
[1734862423569,0.75847087,97110.0,97109.0,0.1231714]
[1734862424955,0.57305408,97110.0,97109.0,0.1231714]
[1734862425828,0.67436248,97110.0,97109.0,0.1231714]
[1734862428046,0.85977927,97110.0,97109.0,0.1231714]
[1734862434089,0.67436248,97110.0,97109.0,0.1231714]
[1734862435220,0.33216326,97110.0,97109.0,0.1231714]
[1734862438297,0.47124312,97110.0,97109.0,0.1231714]
[1734862439426,0.67445684,97110.0,97109.0,0.1231714]
[1734862440315,0.89854541,97110.0,97109.0,0.1231714]
[1734862441670,0.66673066,97110.0,97109.0,0.1231714]
[1734862443094,0.32443708,97110.0,97109.0,0.1231714]
[1734862444681,0.33216557,97110.0,97109.0,0.1231714]
[1734862445379,0.32443708,97110.0,97109.0,0.1231714]
[1734862448293,0.85214799,97110.0,97109.0,0.1231714]
[1734862451084,0.66670729,97110.0,97109.0,0.1231714]
[1734862452207,0.85214799,97110.0,97109.0,0.1231714]
[1734862455088,0.85214799,97110.0,97109.0,0.0771714]
[1734862455266,0.95214799,97110.0,97109.0,0.0001714]
[1734862456022,1.10214799,97110.0,97109.0,0.0001714]
[1734862456208,1.10014799,97110.0,97109.0,0.0001714]
[1734862456433,1.09514799,97110.0,97109.0,0.0001714]
[1734862456788,1.10414799,97110.0,97109.0,0.0011714]
[1734862457565,1.09514799,97110.0,97109.0,0.0001714]
[1734862457848,0.91470729,97110.0,97109.0,0.0001714]
[1734862457955,0.96906438,97110.0,97109.0,0.0001714]
[1734862458159,0.205977,97098.0,97097.0,0.0811]
[1734862458363,0.3072854,97098.0,97097.0,0.0811]
[1734862459240,0.3072854,97098.0,97090.0,0.0465]
[1734862459241,0.411958,97097.0,97091.0,0.0798]
[1734862459438,0.10233838,97096.0,97091.0,0.0798]
[1734862459691,0.205983,97095.0,97092.0,0.00822895]
[1734862459868,0.205988,97093.0,97092.0,0.00822895]
[1734862460083,0.3072964,97093.0,97091.0,0.0798]
[1734862460293,0.35233838,97092.0,97091.0,0.0798]
[1734862460623,0.25,97088.0,97087.0,8.57e-05]
[1734862460749,0.3513084,97088.0,97087.0,8.57e-05]
[1734862461871,0.4513084,97088.0,97087.0,7e-07]
[1734862462486,0.4523084,97088.0,97087.0,7e-07]
[1734862463154,0.80728897,97088.0,97087.0,7e-07]
[1734862463361,0.81028897,97088.0,97087.0,7e-07]
[1734862463494,0.456028,97074.0,97065.0,0.0798]
[1734862463675,0.6573364,97074.0,97065.0,0.0798]
[1734862464291,0.66504676,97074.0,97065.0,0.0798]
[1734862465418,0.90731697,97074.0,97065.0,0.0798]
[1734862465584,1.00731697,97074.0,97073.0,7e-07]
[1734862465797,1.00831697,97074.0,97073.0,7e-07]
[1734862466574,1.01031697,97074.0,97073.0,7e-07]
[1734862467324,0.90831697,97074.0,97073.0,7e-07]
[1734862467528,1.00831697,97074.0,97073.0,7e-07]
[1734862467737,1.01731697,97074.0,97073.0,7e-07]
[1734862467880,1.03680742,97074.0,97073.0,7e-07]
[1734862468086,1.04180742,97074.0,97073.0,7e-07]
[1734862469022,1.05184579,97074.0,97073.0,7e-07]
[1734862469246,0.95184579,97074.0,97073.0,7e-07]
[1734862469424,1.05184579,97074.0,97073.0,7e-07]
[1734862469618,0.95184579,97074.0,97073.0,7e-07]
[1734862469902,1.05184579,97074.0,97073.0,7e-07]
[1734862470341,0.84800904,97074.0,97073.0,7e-07]
[1734862471417,0.70957558,97074.0,97073.0,7e-07]
[1734862472556,0.94931744,97074.0,97073.0,7e-07]
[1734862472761,0.86860904,97074.0,97073.0,7e-07]
[1734862473177,0.556062,97058.0,97057.0,7e-07]
[1734862473375,0.456087,97046.0,97045.0,0.0499]
[1734862473597,0.5573954,97046.0,97045.0,0.0499]
[1734862473872,0.56510576,97046.0,97045.0,0.0499]
[1734862474516,0.56510576,97046.0,97045.0,0.05044322]
[1734862474849,0.56810576,97046.0,97045.0,0.05044322]
[1734862475254,0.56910576,97046.0,97045.0,0.00054322]
[1734862476365,0.57529141,97046.0,97045.0,0.00054322]
[1734862476559,0.58229141,97046.0,97045.0,0.00054322]
[1734862476913,0.57529141,97046.0,97045.0,0.00054322]
[1734862477278,0.58429141,97046.0,97045.0,0.00054322]
[1734862477601,0.206111,97035.0,97034.0,0.0499]
[1734862477817,0.5574194,97035.0,97034.0,0.0499]
[1734862478252,0.1,97033.0,97032.0,0.0798]
[1734862478380,0.20233838,97033.0,97032.0,0.0798]
[1734862478723,0.36004874,97033.0,97032.0,0.0798]
[1734862478925,0.25,97032.0,97031.0,0.0001714]
[1734862479137,0.5574254,97032.0,97031.0,0.0001714]
[1734862479879,0.56513576,97032.0,97031.0,0.0001714]
[1734862480834,0.57113576,97032.0,97031.0,0.0001714]
[1734862481812,0.57413576,97032.0,97031.0,0.0001714]
[1734862489463,0.1,97031.0,97030.0,0.00013415]
[1734862489665,0.20233838,97031.0,97030.0,0.00013415]
[1734862489992,0.36004874,97031.0,97030.0,0.00013415]
[1734862490195,0.35901876,97031.0,97030.0,0.08043415]
[1734862490844,0.206153,97015.0,97013.0,8.57e-05]
[1734862492156,0.20669565,97015.0,97014.0,0.0010857]
[1734862492361,0.21440601,97015.0,97014.0,0.0010857]
[1734862493856,0.21440601,97015.0,97014.0,0.1290857]
[1734862494269,0.21440601,97015.0,97014.0,0.13617215]
[1734862497868,0.22486081,97015.0,97014.0,0.13617215]
[1734862503092,0.22486081,97015.0,97014.0,0.1290857]
[1734862503386,0.22486081,97015.0,97014.0,0.13615519]
[1734862503713,0.21715045,97015.0,97014.0,0.13615519]
[1734862504093,0.09220325,97036.0,97014.0,0.00815519]
[1734862504287,0.09220325,97036.0,97029.0,0.1251]
[1734862504488,0.09220325,97036.0,97032.0,0.077]
[1734862504809,0.09220325,97036.0,97034.0,0.1251]
[1734862505011,0.09220325,97036.0,97035.0,0.1251]
[1734862505218,0.09220325,97036.0,97035.0,0.13214104]
[1734862506116,0.29831225,97036.0,97035.0,0.13214104]
[1734862506309,0.30331225,97036.0,97035.0,0.13214104]
[1734862506513,0.30331225,97036.0,97035.0,0.1251]
[1734862506856,0.29831225,97036.0,97035.0,0.1251]
[1734862506972,0.206109,97036.0,97035.0,0.1251]
[1734862507188,0.206109,97036.0,97035.0,0.13235486]
[1734862507615,0.3074174,97036.0,97035.0,0.00725486]
[1734862508019,0.206121,97030.0,97029.0,0.077]
[1734862509240,0.208121,97030.0,97029.0,0.077]
[1734862510024,0.002,97030.0,97029.0,0.077]
[1734862510228,0.002,97030.0,97029.0,0.1221]
[1734862510482,0.003,97030.0,97029.0,0.1221]
[1734862510688,0.003,97030.0,97029.0,0.12938423]
[1734862510896,0.002,97030.0,97029.0,0.12938423]
[1734862511098,0.09237485,97045.0,97030.0,0.206121]
[1734862511250,0.09237485,97045.0,97032.0,0.023]
[1734862511450,0.09237485,97045.0,97040.0,0.0763]
[1734862511857,0.0001716,97045.0,97040.0,0.0763]
[1734862512057,0.0001716,97045.0,97042.0,0.0763]
[1734862512263,0.0001716,97045.0,97043.0,0.07733033]
[1734862512465,0.0001716,97045.0,97043.0,0.08457635]
[1734862512684,0.0001716,97045.0,97043.0,0.08354602]
[1734862513250,0.206092,97044.0,97043.0,0.08354602]
[1734862514408,0.0001716,97045.0,97043.0,0.08354602]
[1734862514650,0.0001716,97045.0,97043.0,0.08454602]
[1734862515362,0.206092,97044.0,97043.0,0.08554602]
[1734862516011,0.206092,97044.0,97043.0,0.08354602]
[1734862516418,0.206092,97044.0,97043.0,0.08454602]
[1734862516731,0.206092,97044.0,97043.0,0.08354602]
[1734862516936,0.0001716,97045.0,97043.0,0.08354602]
[1734862517138,0.0001716,97045.0,97043.0,0.08454602]
[1734862517805,0.0001716,97045.0,97043.0,0.08354602]
[1734862517996,0.0001716,97045.0,97043.0,0.08454602]
[1734862518214,0.206092,97044.0,97043.0,0.08454602]
[1734862518360,0.206092,97044.0,97043.0,0.08354602]
[1734862518912,0.206092,97044.0,97043.0,0.08454602]
[1734862520451,0.206092,97044.0,97043.0,0.08354602]
[1734862520911,0.0001716,97045.0,97043.0,0.08454602]
[1734862521659,0.206092,97044.0,97043.0,0.08354602]
[1734862521870,0.0001716,97045.0,97043.0,0.08354602]
[1734862522070,0.0001716,97045.0,97043.0,0.08454602]
[1734862522288,0.0001716,97045.0,97044.0,0.127]
[1734862522688,0.0001716,97045.0,97044.0,0.13422192]
[1734862523410,0.0001716,97045.0,97044.0,0.1343846]
[1734862523613,0.0001716,97045.0,97044.0,0.13541492]
[1734862524680,0.0001716,97045.0,97044.0,0.1353846]
[1734862527409,0.0001716,97045.0,97044.0,0.1343846]
[1734862527751,0.0001716,97045.0,97044.0,0.1353846]
[1734862528231,0.0001716,97045.0,97044.0,0.1343846]
[1734862528403,0.0001716,97045.0,97044.0,0.1363846]
[1734862529061,0.0001716,97045.0,97044.0,0.1343846]
[1734862529378,0.0001716,97045.0,97044.0,0.1363846]
[1734862530597,0.0001716,97045.0,97044.0,0.1343846]
[1734862530915,0.0001716,97045.0,97044.0,0.1363846]
[1734862531521,0.0001716,97045.0,97044.0,0.1343846]
[1734862531929,0.0001716,97045.0,97044.0,0.1363846]
[1734862532490,0.0001716,97045.0,97044.0,0.1343846]
[1734862532684,0.0001716,97045.0,97044.0,0.1363846]
[1734862534515,0.0001716,97045.0,97044.0,0.1343846]
[1734862534921,0.0001716,97045.0,97044.0,0.1353846]
[1734862536321,0.0001716,97045.0,97044.0,0.1343846]
[1734862536955,0.0001716,97045.0,97044.0,0.1353846]
[1734862539706,0.0001716,97045.0,97044.0,0.1343846]
[1734862540051,0.0001716,97045.0,97044.0,0.1353846]
[1734862541680,0.0001716,97045.0,97044.0,0.13641486]
[1734862543964,0.00789714,97045.0,97044.0,0.13641486]
[1734862544641,0.0001716,97045.0,97044.0,0.13641486]
[1734862545045,0.0001716,97045.0,97044.0,0.13541486]
[1734862545489,0.0001716,97045.0,97044.0,0.13641486]
[1734862545871,0.0001716,97045.0,97044.0,0.13541486]
[1734862546197,0.0001716,97045.0,97044.0,0.13741486]
[1734862547118,0.00789555,97045.0,97044.0,0.13741486]
[1734862547988,0.0001716,97045.0,97044.0,0.13741486]
[1734862550214,0.00789557,97045.0,97044.0,0.13741486]
[1734862552636,0.00789557,97045.0,97044.0,0.23872326]
[1734862552839,0.00789557,97045.0,97044.0,0.237693]
[1734862553375,0.0001716,97045.0,97044.0,0.237693]
[1734862553798,0.0001716,97045.0,97044.0,0.260693]
[1734862554201,0.0011716,97045.0,97044.0,0.264693]
[1734862554413,0.0011716,97045.0,97044.0,0.262693]
[1734862554691,0.0011716,97045.0,97044.0,0.267693]
[1734862560725,0.0011716,97045.0,97044.0,0.417693]
[1734862562145,0.0011716,97045.0,97044.0,0.50964838]
[1734862564586,0.00772397,97073.0,97072.0,0.330932]
[1734862564782,0.0001716,97074.0,97072.0,0.330932]
[1734862564783,0.0001716,97074.0,97072.0,0.4393331]
[1734862565012,0.0001716,97074.0,97073.0,0.12533837]
[1734862565214,0.0001716,97074.0,97073.0,0.13139908]
[1734862565828,0.0001716,97074.0,97073.0,0.13242903]
[1734862566036,0.0001716,97074.0,97073.0,0.13139908]
[1734862566529,0.0001716,97074.0,97073.0,0.13242903]
[1734862566924,0.0001716,97074.0,97073.0,0.10839908]
[1734862567130,0.0001716,97074.0,97073.0,0.10942901]
[1734862567565,0.0001716,97074.0,97073.0,0.11339908]
[1734862567900,0.0001716,97074.0,97073.0,0.11239908]
[1734862568287,0.0001716,97074.0,97073.0,0.10839908]
[1734862568489,0.0001716,97074.0,97073.0,0.01209068]
[1734862568781,0.0001716,97074.0,97073.0,0.01009068]
[1734862569033,0.0011716,97074.0,97073.0,0.011]
[1734862569482,0.0001716,97074.0,97073.0,0.003]
[1734862569713,0.0001716,97074.0,97073.0,0.01005932]
[1734862569941,0.0001716,97074.0,97073.0,0.003]
[1734862570138,0.0001716,97074.0,97073.0,0.01005932]
[1734862570334,0.0001716,97074.0,97073.0,0.003]
[1734862570533,0.0001716,97074.0,97073.0,0.00705932]
[1734862570784,0.0001716,97074.0,97066.0,0.0771]
[1734862570950,0.0001716,97074.0,97073.0,0.002]
[1734862571353,0.0001716,97074.0,97073.0,0.01005932]
[1734862571596,0.0001716,97074.0,97067.0,0.3073504]
[1734862571801,0.0001716,97074.0,97073.0,0.00805932]
[1734862572001,0.0001716,97074.0,97073.0,0.001]
[1734862572252,0.0001716,97074.0,97073.0,0.00805932]
[1734862572555,0.01944734,97074.0,97069.0,0.206039]
[1734862572766,0.01944734,97074.0,97073.0,0.00705932]
[1734862572976,0.01944734,97074.0,97073.0,0.00103001]
[1734862573194,0.0001716,97074.0,97073.0,0.01009962]
[1734862573396,0.01944497,97074.0,97073.0,0.00303001]
[1734862573567,0.01944497,97074.0,97073.0,0.01009962]
[1734862573706,0.01944497,97074.0,97073.0,0.00303001]
[1734862573906,0.01944497,97074.0,97073.0,0.00906961]
[1734862574136,0.01944497,97074.0,97073.0,0.002]
[1734862574339,0.01944497,97074.0,97073.0,0.00906961]
[1734862574557,0.01944497,97074.0,97067.0,0.1013084]
[1734862574763,0.01944497,97074.0,97073.0,0.00706961]
[1734862574965,0.0001716,97074.0,97073.0,0.001]
[1734862575177,0.0001716,97074.0,97073.0,0.00803051]
[1734862575348,0.0001716,97074.0,97073.0,0.00703051]
[1734862575546,0.01944527,97074.0,97073.0,0.01003051]
[1734862575987,0.01944527,97074.0,97073.0,0.003]
[1734862577139,0.01944527,97074.0,97073.0,0.1043084]
[1734862577351,0.01944527,97074.0,97073.0,0.10533837]
[1734862577546,0.01944464,97074.0,97073.0,0.11237321]
[1734862577907,0.01944464,97074.0,97073.0,0.11037321]
[1734862578104,0.01944464,97074.0,97073.0,0.10934323]
[1734862578309,0.01944464,97074.0,97073.0,0.01103483]
[1734862578559,0.01944464,97074.0,97073.0,0.00703483]
[1734862578763,0.20603,97073.0,97067.0,0.00103003]
[1734862579089,0.20603,97073.0,97066.0,0.0771]
[1734862579090,0.20603,97073.0,97068.0,0.00703392]
[1734862579277,0.01927304,97072.0,97068.0,0.00703392]
[1734862579718,0.22530704,97071.0,97069.0,0.00703361]
[1734862579921,0.01927304,97071.0,97069.0,0.00703361]
[1734862580065,0.01927304,97071.0,97066.0,0.07813009]
[1734862580262,0.01927304,97070.0,97067.0,0.00703424]
[1734862580508,0.01927304,97070.0,97068.0,0.0010301]
[1734862580688,0.0001716,97074.0,97070.0,0.206035]
[1734862580893,0.0001716,97074.0,97071.0,0.10937378]
[1734862581355,0.05012398,97073.0,97071.0,0.10937378]
[1734862581866,0.0001716,97074.0,97073.0,0.0478]
[1734862581987,0.0001716,97074.0,97073.0,0.25213825]
[1734862582188,0.0001716,97074.0,97073.0,0.25814318]
[1734862582781,0.01945429,97074.0,97073.0,0.25814318]
[1734862584639,0.0001716,97074.0,97073.0,0.26014318]
[1734862585179,0.0001716,97074.0,97073.0,0.25814318]
[1734862585397,0.0001716,97074.0,97073.0,0.26314318]
[1734862585695,0.0001716,97074.0,97073.0,0.26214318]
[1734862586133,0.0011716,97074.0,97073.0,0.27114318]
[1734862587009,0.0011716,97074.0,97073.0,0.42114318]
[1734862588172,0.0011716,97074.0,97073.0,0.52114318]
[1734862590620,0.0011716,97074.0,97073.0,0.51714318]
[1734862590828,0.0011716,97074.0,97073.0,0.52114318]
[1734862592065,0.0001716,97074.0,97073.0,0.51214318]
[1734862592220,0.0011716,97074.0,97073.0,0.52114318]
[1734862597269,0.0011716,97074.0,97073.0,0.54192348]
[1734862598047,0.0001716,97074.0,97073.0,0.53292348]
[1734862598190,0.0001716,97074.0,97073.0,0.62892348]
[1734862598392,0.0011716,97074.0,97073.0,0.64192348]
[1734862598592,0.0001716,97074.0,97073.0,0.63292348]
[1734862599012,0.0011716,97074.0,97073.0,0.63792348]
[1734862599219,0.0001716,97074.0,97073.0,0.63592348]
[1734862599679,0.0001716,97074.0,97073.0,0.63692348]
[1734862600192,0.0001716,97074.0,97073.0,0.72166141]
[1734862602935,0.0001716,97074.0,97073.0,0.62992348]
[1734862603111,0.0001716,97074.0,97073.0,1.14499348]
[1734862604303,0.0001716,97074.0,97073.0,1.23673141]
[1734862605058,0.0001716,97074.0,97073.0,1.26858506]
[1734862605750,6e-07,97074.0,97073.0,1.26858506]
[1734862605891,6e-07,97074.0,97073.0,1.49761873]
[1734862606092,6e-07,97074.0,97073.0,1.60611873]
[1734862607355,6e-07,97074.0,97073.0,2.05514597]
[1734862607753,0.0192677,97112.0,97097.0,0.023]
[1734862607980,0.0192677,97112.0,97109.0,0.205953]
[1734862608180,0.0192677,97111.0,97110.0,0.0010296]
[1734862608390,0.0192677,97111.0,97110.0,0.0078999]
[1734862608930,0.01935169,97111.0,97110.0,0.0078999]
[1734862611079,0.01935169,97111.0,97110.0,0.1322083]
[1734862611305,0.01935169,97111.0,97110.0,0.2092083]
[1734862611439,0.01935169,97111.0,97110.0,0.2081787]
[1734862611842,0.01935169,97111.0,97110.0,0.2111787]
[1734862612184,0.01935169,97111.0,97110.0,0.2091787]
[1734862612381,8.399e-05,97111.0,97110.0,0.2091787]
[1734862612684,8.399e-05,97111.0,97110.0,0.2121787]
[1734862615051,8.399e-05,97111.0,97110.0,0.1351787]
[1734862615256,8.399e-05,97111.0,97110.0,0.1121787]
[1734862615441,8.399e-05,97111.0,97110.0,0.0108703]
[1734862615639,0.01934991,97111.0,97110.0,0.0108703]
[1734862615781,0.01934991,97111.0,97110.0,0.004]
[1734862615985,0.05020221,97111.0,97110.0,0.004]
[1734862618425,0.05020221,97111.0,97110.0,0.001]
[1734862618629,8.399e-05,97111.0,97110.0,0.002]
[1734862618829,8.399e-05,97111.0,97110.0,0.001]
[1734862619029,8.399e-05,97111.0,97110.0,0.00683565]
[1734862619346,8.399e-05,97111.0,97110.0,0.002]
[1734862619673,8.399e-05,97111.0,97106.0,0.00102967]
[1734862619977,0.01935842,97111.0,97110.0,0.004]
[1734862620274,0.05019751,97111.0,97110.0,0.004]
[1734862620496,0.05036891,97111.0,97110.0,0.004]
[1734862620682,0.05036891,97111.0,97110.0,0.003]
[1734862621463,0.05036891,97111.0,97103.0,0.205966]
[1734862621663,0.05036891,97111.0,97106.0,0.003]
[1734862621981,0.05011352,97110.0,97107.0,0.00684968]
[1734862622361,0.05011352,97110.0,97104.0,0.00102969]
[1734862622591,0.05011352,97110.0,97105.0,0.0010297]
[1734862622787,0.05011352,97110.0,97106.0,0.001]
[1734862623025,0.05011352,97109.0,97106.0,0.003]
[1734862623240,0.05011352,97109.0,97107.0,0.00686043]
[1734862623509,0.00025539,97111.0,97108.0,0.205956]
[1734862623711,0.00025539,97111.0,97110.0,0.205952]
[1734862624069,0.00025539,97111.0,97110.0,0.21281354]
[1734862624292,0.00025539,97111.0,97110.0,0.31412194]
[1734862624477,0.01953369,97111.0,97110.0,0.33712194]
[1734862624896,0.00025539,97111.0,97110.0,0.41392194]
[1734862625097,0.00025539,97111.0,97110.0,0.4241076]
[1734862625842,0.00025539,97111.0,97110.0,0.9409876]
[1734862626205,0.00025539,97111.0,97110.0,0.9419876]
[1734862626425,0.00025539,97111.0,97110.0,0.9399876]
[1734862626850,0.00025539,97111.0,97110.0,0.9409876]
[1734862627523,0.00025539,97111.0,97110.0,0.9389876]
[1734862627931,0.00025539,97111.0,97110.0,0.9439876]
[1734862628350,0.00025539,97111.0,97110.0,0.9529876]
[1734862628886,0.00025539,97111.0,97110.0,1.0529876]
[1734862629114,0.00025539,97111.0,97110.0,1.2029876]
[1734862629521,0.00025539,97111.0,97110.0,1.2496876]
[1734862630056,0.00025539,97111.0,97110.0,1.3496876]
[1734862632516,0.00025539,97111.0,97110.0,1.4413114]
[1734862634943,0.00025539,97111.0,97110.0,1.66325109]
[1734862635804,0.00025539,97111.0,97110.0,1.64925109]
[1734862635981,0.00025539,97111.0,97110.0,1.65825109]
[1734862636180,0.00025539,97111.0,97110.0,1.66325109]
[1734862637781,0.00025539,97111.0,97110.0,1.65425109]
[1734862638115,0.00025539,97111.0,97110.0,1.65625109]
[1734862638661,0.00025539,97111.0,97110.0,1.68306182]
[1734862639235,0.00025539,97111.0,97110.0,1.87026831]
[1734862639477,0.00025539,97111.0,97110.0,1.86826831]
[1734862639655,0.00025539,97111.0,97110.0,1.87126831]
[1734862639855,0.00025539,97111.0,97110.0,1.86726831]
[1734862640088,0.00025539,97111.0,97110.0,1.86826831]
[1734862640318,0.00025539,97111.0,97110.0,1.68506182]
[1734862643306,0.00025539,97111.0,97110.0,1.91385153]
[1734862643715,0.00025539,97111.0,97110.0,1.8590408]
[1734862644488,0.00025539,97111.0,97110.0,1.7560408]
[1734862644758,0.00025539,97111.0,97110.0,1.51453482]
[1734862644988,0.00025539,97111.0,97110.0,1.29303482]
[1734862645356,0.00025539,97111.0,97110.0,1.29203482]
[1734862645563,0.00025539,97111.0,97110.0,1.07689716]
[1734862645788,0.00025539,97111.0,97110.0,1.07489716]
[1734862645990,0.00025539,97111.0,97110.0,1.07389716]
[1734862646136,0.00025539,97111.0,97110.0,1.07589716]
[1734862646505,0.00025539,97111.0,97110.0,0.52374154]
[1734862647286,0.00025539,97111.0,97110.0,0.52174154]
[1734862647695,0.00025539,97111.0,97110.0,0.53074154]
[1734862647951,0.00025539,97111.0,97110.0,0.52174154]
[1734862648251,0.01949628,97111.0,97110.0,0.52574154]
[1734862648865,0.01949628,97111.0,97110.0,0.52174154]
[1734862649725,0.00025539,97111.0,97110.0,0.52174154]
[1734862650361,0.00025539,97111.0,97110.0,0.64604994]
[1734862651900,0.00025539,97111.0,97110.0,0.65304994]
[1734862652110,0.00025539,97111.0,97110.0,0.64704994]
[1734862652267,0.00025539,97111.0,97110.0,0.64604994]
[1734862652471,0.00025539,97111.0,97110.0,0.65304994]
[1734862652646,0.00025539,97111.0,97110.0,0.64904994]
[1734862653242,0.00025539,97111.0,97110.0,0.64604994]
[1734862653618,0.00025539,97111.0,97110.0,0.64904994]
[1734862654044,0.00025539,97111.0,97110.0,0.65604994]
[1734862654443,0.00025539,97111.0,97110.0,0.64904994]
[1734862654687,0.00025539,97111.0,97110.0,0.65604994]
[1734862655197,0.00025539,97111.0,97110.0,0.65304994]
[1734862655404,0.00025539,97111.0,97110.0,0.64904994]
[1734862655810,0.00025539,97111.0,97110.0,0.65604994]
[1734862655997,0.00025539,97111.0,97110.0,0.65304994]
[1734862656292,0.00025539,97111.0,97110.0,0.65704994]
[1734862656941,0.00025539,97111.0,97110.0,0.64604994]
[1734862657147,0.00025539,97111.0,97110.0,0.79604994]
[1734862657372,0.00025539,97111.0,97110.0,0.80504994]
[1734862657541,0.00025539,97111.0,97110.0,0.79604994]
[1734862657953,0.00025539,97111.0,97110.0,0.80504994]
[1734862658769,0.00025539,97111.0,97110.0,0.80904994]
[1734862659417,0.00025539,97111.0,97110.0,0.80504994]
[1734862659752,0.00025539,97111.0,97110.0,0.80904994]
[1734862659982,0.00025539,97111.0,97110.0,0.80004994]
[1734862660472,0.00025539,97111.0,97110.0,0.80904994]
[1734862664062,0.00025539,97111.0,97110.0,0.97874994]
[1734862664469,0.00025539,97111.0,97110.0,0.98774994]
[1734862664671,0.00025539,97111.0,97110.0,0.98374994]
[1734862664874,0.00025539,97111.0,97110.0,0.98774994]
[1734862665436,0.00025539,97111.0,97110.0,0.98374994]
[1734862665844,0.00025539,97111.0,97110.0,0.98874994]
[1734862666197,0.00025539,97111.0,97110.0,0.97974994]
[1734862666520,0.00025539,97111.0,97110.0,0.98874994]
[1734862666720,0.00025539,97111.0,97110.0,0.97974994]
[1734862667122,0.00025539,97111.0,97110.0,0.88874994]
[1734862667663,0.00025539,97111.0,97110.0,0.98874994]
[1734862667843,0.18581878,97138.0,97127.0,0.023]
[1734862668055,0.0005426,97129.0,97128.0,0.12533778]
[1734862668262,0.0005426,97129.0,97128.0,0.13212093]
[1734862669449,0.0005426,97129.0,97128.0,0.21382093]
[1734862669682,0.0005426,97129.0,97128.0,0.21279155]
[1734862670221,0.0005426,97129.0,97128.0,0.20979155]
[1734862670660,0.0005426,97129.0,97128.0,0.21779155]
[1734862670863,0.0005426,97129.0,97128.0,0.20979155]
[1734862671068,0.0005426,97129.0,97128.0,0.21079155]
[1734862671400,0.0005426,97129.0,97128.0,0.21879155]
[1734862671536,0.0005426,97129.0,97128.0,0.21779155]
[1734862671742,0.0005426,97129.0,97128.0,0.22179155]
[1734862671955,0.0005426,97129.0,97128.0,0.14309155]
[1734862672158,0.0005426,97129.0,97128.0,0.1441209]
[1734862672624,0.0005426,97129.0,97128.0,0.1361209]
[1734862672790,0.0005426,97129.0,97128.0,0.1441209]
[1734862672991,0.0005426,97129.0,97128.0,0.14309155]
[1734862673399,0.0005426,97129.0,97128.0,0.1441209]
[1734862678759,0.0005426,97129.0,97128.0,0.2228209]
[1734862678957,0.0005426,97129.0,97128.0,0.22179155]
[1734862680967,0.0005426,97129.0,97128.0,0.21779155]
[1734862681183,0.0005426,97129.0,97128.0,0.20979155]
[1734862681343,0.0005426,97129.0,97128.0,0.22279155]
[1734862683379,0.0005426,97129.0,97128.0,0.14409155]
[1734862683726,0.0005426,97129.0,97128.0,0.12212088]
[1734862686142,0.0005426,97129.0,97128.0,0.65990088]
[1734862686340,0.0005426,97129.0,97128.0,0.65887155]
[1734862688519,0.0005426,97129.0,97128.0,0.93797155]
[1734862693436,0.0005426,97129.0,97128.0,0.93805725]
[1734862695338,0.0005426,97129.0,97128.0,0.78595725]
[1734862696775,0.0005426,97129.0,97128.0,0.80895725]
[1734862700374,0.0005426,97129.0,97128.0,0.80495725]
[1734862700792,0.0005426,97129.0,97128.0,0.80795725]
[1734862701329,0.0005426,97129.0,97128.0,0.80495725]
[1734862701536,0.0005426,97129.0,97128.0,0.80895725]
[1734862702396,0.0005426,97129.0,97128.0,0.80495725]
[1734862702863,0.0005426,97129.0,97128.0,0.79595725]
[1734862703081,0.0005426,97129.0,97128.0,0.80195725]
[1734862703566,0.0005426,97129.0,97128.0,0.79595725]
[1734862703759,0.0005426,97129.0,97128.0,0.80295725]
[1734862704251,0.0005426,97129.0,97128.0,0.80495725]
[1734862704652,0.0005426,97129.0,97128.0,0.80295725]
[1734862705195,0.0005426,97129.0,97128.0,0.80595725]
[1734862705580,0.0005426,97129.0,97128.0,0.87865725]
[1734862705990,0.0005426,97129.0,97128.0,0.88065725]
[1734862706303,0.0005426,97129.0,97128.0,0.87365725]
[1734862706451,0.0005426,97129.0,97128.0,1.02095725]
[1734862706635,0.0005426,97129.0,97128.0,1.02595725]
[1734862706832,0.0005426,97129.0,97128.0,1.02095725]
[1734862707037,0.0005426,97129.0,97128.0,1.05283984]
[1734862707320,0.0005426,97129.0,97128.0,1.06183984]
[1734862707753,0.0005426,97129.0,97128.0,1.05983984]
[1734862707930,0.0005426,97129.0,97128.0,1.06283984]
[1734862708274,0.0005426,97129.0,97128.0,1.05983984]
[1734862708702,0.0005426,97129.0,97128.0,1.06483984]
[1734862709583,0.0005426,97129.0,97128.0,1.05583984]
[1734862709962,0.0005426,97129.0,97128.0,1.06483984]
[1734862710159,0.0005426,97129.0,97128.0,1.29362955]
[1734862710498,0.0005426,97129.0,97128.0,1.27962955]
[1734862710639,0.0005426,97129.0,97128.0,1.28862955]
[1734862711005,0.0005426,97129.0,97128.0,1.29462955]
[1734862711489,0.0005426,97129.0,97128.0,1.27962955]
[1734862711713,0.0005426,97129.0,97128.0,1.28862955]
[1734862711944,0.0005426,97129.0,97128.0,1.29462955]
[1734862712647,0.0001716,97142.0,97139.0,0.30589]
[1734862712886,0.00016953,97140.0,97139.0,1.20501099]
[1734862713112,0.00016953,97140.0,97139.0,1.21167543]
[1734862714113,0.00016953,97140.0,97139.0,1.22067543]
[1734862714333,0.00016953,97140.0,97139.0,1.36907543]
[1734862714875,0.00016953,97140.0,97139.0,1.37507543]
[1734862716523,0.00016953,97140.0,97139.0,1.60426721]
[1734862716761,0.00016953,97140.0,97139.0,1.61456914]
[1734862717468,0.00016953,97140.0,97139.0,1.38537736]